[Event "Titled Tuesday Blitz November 14 Early 2023"]
[White "Djokic, Mihailo"]
[Black "Bharath Subramaniyam H"]
[WhiteFideId "976440"]
[BlackFideId "46634827"]
[WhiteElo "2720"]
[BlackElo "2922"]
[Result "0-1"]
[Round "3"]
[TimeControl "180+1"]
[Date "2023.11.14"]
[WhiteClock "0:00:26"]
[BlackClock "0:01:32"]
[Board "26"]

1. e4 {[%clk 0:03:00]}  c5 {[%clk 0:02:59]} 2. Nf3 {[%clk 0:03:00]}  e6 {[%clk 0:02:59]} 3. d4 {[%clk 0:03:01]}  cxd4 {[%clk 0:03:00]} 4. Nxd4 {[%clk 0:03:01]}  a6 {[%clk 0:02:59]} 5. Be2 {[%clk 0:03:01]}  Nf6 {[%clk 0:02:59]} 6. Nc3 {[%clk 0:03:01]}  Qc7 {[%clk 0:03:00]} 7. O-O {[%clk 0:03:02]}  Be7 {[%clk 0:02:58]} 8. f4 {[%clk 0:03:00]}  d6 {[%clk 0:02:59]} 9. Be3 {[%clk 0:02:58]}  O-O {[%clk 0:02:59]} 10. Kh1 {[%clk 0:02:58]}  b5 {[%clk 0:02:59]} 11. a3 {[%clk 0:02:54]}  Bb7 {[%clk 0:02:59]} 12. Bf3 {[%clk 0:02:51]}  Nbd7 {[%clk 0:02:59]} 13. Re1 {[%clk 0:02:47]}  Nb6 {[%clk 0:02:57]} 14. Qd3 {[%clk 0:02:29]}  Nc4 {[%clk 0:02:56]} 15. Bc1 {[%clk 0:02:29]}  g6 {[%clk 0:02:55]} 16. b3 {[%clk 0:02:28]}  Nb6 {[%clk 0:02:48]} 17. Bb2 {[%clk 0:02:29]}  e5 {[%clk 0:02:48]} 18. Nde2 {[%clk 0:02:28]}  Rfd8 {[%clk 0:02:44]} 19. Rad1 {[%clk 0:02:28]}  Bf8 {[%clk 0:02:43]} 20. Bc1 {[%clk 0:02:16]}  Rac8 {[%clk 0:02:41]} 21. Be3 {[%clk 0:02:14]}  Nbd7 {[%clk 0:02:38]} 22. Bd2 {[%clk 0:02:06]}  Nc5 {[%clk 0:02:34]} 23. Qe3 {[%clk 0:02:06]}  Bg7 {[%clk 0:02:31]} 24. Ng3 {[%clk 0:01:55]}  Ne6 {[%clk 0:02:29]} 25. f5 {[%clk 0:01:47]}  Nd4 {[%clk 0:02:29]} 26. Rc1 {[%clk 0:01:45]}  d5 {[%clk 0:02:22]} 27. fxg6 {[%clk 0:01:44]}  hxg6 {[%clk 0:02:22]} 28. exd5 {[%clk 0:01:45]}  Nxf3 {[%clk 0:02:19]} 29. Qxf3 {[%clk 0:01:45]}  Nxd5 {[%clk 0:02:18]} 30. Nxd5 {[%clk 0:01:42]}  Bxd5 {[%clk 0:02:17]} 31. Qf2 {[%clk 0:01:42]}  f5 {[%clk 0:02:16]} 32. Bg5 {[%clk 0:01:40]}  Rd7 {[%clk 0:02:15]} 33. Red1 {[%clk 0:01:35]}  Bc6 {[%clk 0:02:05]} 34. Rxd7 {[%clk 0:01:34]}  Qxd7 {[%clk 0:02:06]} 35. Re1 {[%clk 0:01:17]}  f4 {[%clk 0:02:04]} 36. Nf1 {[%clk 0:01:11]}  Qf5 {[%clk 0:01:55]} 37. h4 {[%clk 0:01:11]}  Be4 {[%clk 0:01:53]} 38. c4 {[%clk 0:01:07]}  bxc4 {[%clk 0:01:52]} 39. bxc4 {[%clk 0:01:07]}  Bd3 {[%clk 0:01:48]} 40. Nd2 {[%clk 0:01:06]}  Bf8 {[%clk 0:01:42]} 41. Qb6 {[%clk 0:01:00]}  e4 {[%clk 0:01:37]} 42. Qxa6 {[%clk 0:00:48]}  f3 {[%clk 0:01:37]} 43. Be3 {[%clk 0:00:39]}  Qg4 {[%clk 0:01:33]} 44. Rg1 {[%clk 0:00:26]}  Qxh4# {[%clk 0:01:32]} 0-1


[Site "https://www.chess.com"]

[Event "Titled Tuesday Blitz November 14 Early 2023"]
[White "Chinguun, Sumiya"]
[Black "Baskakov, Egor"]
[WhiteFideId "4902572"]
[BlackFideId "24197866"]
[WhiteElo "2713"]
[BlackElo "2920"]
[Result "0-1"]
[Round "3"]
[TimeControl "180+1"]
[Date "2023.11.14"]
[WhiteClock "0:00:02"]
[BlackClock "0:00:12"]
[Board "27"]

1. e4 {[%clk 0:03:00]}  c5 {[%clk 0:03:00]} 2. Nf3 {[%clk 0:03:01]}  Nf6 {[%clk 0:03:00]} 3. e5 {[%clk 0:03:00]}  Nd5 {[%clk 0:03:01]} 4. c3 {[%clk 0:03:01]}  Nc6 {[%clk 0:03:01]} 5. d4 {[%clk 0:03:00]}  cxd4 {[%clk 0:03:02]} 6. cxd4 {[%clk 0:03:00]}  g6 {[%clk 0:03:01]} 7. Nc3 {[%clk 0:02:59]}  Nxc3 {[%clk 0:03:01]} 8. bxc3 {[%clk 0:02:59]}  Bg7 {[%clk 0:03:02]} 9. Bb5 {[%clk 0:02:57]}  O-O {[%clk 0:03:00]} 10. O-O {[%clk 0:02:57]}  d6 {[%clk 0:03:01]} 11. exd6 {[%clk 0:02:55]}  Qxd6 {[%clk 0:03:01]} 12. Re1 {[%clk 0:02:54]}  h6 {[%clk 0:02:50]} 13. Be3 {[%clk 0:02:52]}  Rd8 {[%clk 0:02:48]} 14. Qc1 {[%clk 0:02:49]}  Kh7 {[%clk 0:02:48]} 15. Bf4 {[%clk 0:02:49]}  Qf6 {[%clk 0:02:31]} 16. Ne5 {[%clk 0:02:46]}  Bd7 {[%clk 0:02:15]} 17. Nxd7 {[%clk 0:02:42]}  Rxd7 {[%clk 0:02:16]} 18. Be5 {[%clk 0:02:41]}  Qf5 {[%clk 0:02:09]} 19. Bxg7 {[%clk 0:02:38]}  Kxg7 {[%clk 0:02:09]} 20. Ba4 {[%clk 0:02:34]}  e6 {[%clk 0:02:07]} 21. h3 {[%clk 0:02:32]}  Rc8 {[%clk 0:02:06]} 22. Rb1 {[%clk 0:02:30]}  Rdc7 {[%clk 0:02:06]} 23. Qd2 {[%clk 0:02:27]}  Qf6 {[%clk 0:02:02]} 24. Re3 {[%clk 0:02:22]}  Na5 {[%clk 0:01:57]} 25. Rf3 {[%clk 0:02:21]}  Qg5 {[%clk 0:01:57]} 26. Qe1 {[%clk 0:02:19]}  Nc4 {[%clk 0:01:57]} 27. Rb5 {[%clk 0:02:18]}  Qd2 {[%clk 0:01:52]} 28. Qe4 {[%clk 0:02:14]}  Kg8 {[%clk 0:01:38]} 29. Rxb7 {[%clk 0:01:56]}  Nd6 {[%clk 0:01:37]} 30. Rxc7 {[%clk 0:01:55]}  Nxe4 {[%clk 0:01:37]} 31. Rxc8+ {[%clk 0:01:55]}  Kg7 {[%clk 0:01:38]} 32. Rc7 {[%clk 0:01:52]}  Ng5 {[%clk 0:01:22]} 33. Re3 {[%clk 0:01:49]}  Qxa2 {[%clk 0:01:11]} 34. Be8 {[%clk 0:01:45]}  Qa1+ {[%clk 0:01:09]} 35. Kh2 {[%clk 0:01:44]}  Qa5 {[%clk 0:01:10]} 36. Rc5 {[%clk 0:01:40]}  Qd8 {[%clk 0:01:07]} 37. Ba4 {[%clk 0:01:39]}  Qd6+ {[%clk 0:01:02]} 38. Kg1 {[%clk 0:01:37]}  Nh7 {[%clk 0:00:53]} 39. Bd1 {[%clk 0:01:21]}  Nf6 {[%clk 0:00:52]} 40. Bf3 {[%clk 0:01:21]}  Qb6 {[%clk 0:00:50]} 41. g3 {[%clk 0:01:19]}  a5 {[%clk 0:00:49]} 42. Re1 {[%clk 0:01:09]}  a4 {[%clk 0:00:44]} 43. Ra1 {[%clk 0:01:08]}  Qb3 {[%clk 0:00:44]} 44. Kg2 {[%clk 0:00:50]}  g5 {[%clk 0:00:41]} 45. Rc7 {[%clk 0:00:37]}  h5 {[%clk 0:00:36]} 46. Bd1 {[%clk 0:00:24]}  Qb2 {[%clk 0:00:35]} 47. Rxa4 {[%clk 0:00:23]}  Ne4 {[%clk 0:00:35]} 48. Kf3 {[%clk 0:00:20]}  Qb1 {[%clk 0:00:16]} 49. Be2 {[%clk 0:00:16]}  g4+ {[%clk 0:00:15]} 50. hxg4 {[%clk 0:00:15]}  hxg4+ {[%clk 0:00:16]} 51. Ke3 {[%clk 0:00:13]}  Nd6 {[%clk 0:00:14]} 52. Raa7 {[%clk 0:00:12]}  Qc1+ {[%clk 0:00:13]} 53. Kd3 {[%clk 0:00:11]}  Qb1+ {[%clk 0:00:13]} 54. Ke3 {[%clk 0:00:11]}  Kf6 {[%clk 0:00:12]} 55. Bxg4 {[%clk 0:00:08]}  Qe4+ {[%clk 0:00:11]} 56. Kd2 {[%clk 0:00:08]}  Qxg4 {[%clk 0:00:11]} 57. c4 {[%clk 0:00:06]}  Qxd4+ {[%clk 0:00:11]} 58. Ke1 {[%clk 0:00:05]}  Qe4+ {[%clk 0:00:11]} 59. Kf1 {[%clk 0:00:05]}  Qh1+ {[%clk 0:00:10]} 60. Ke2 {[%clk 0:00:05]}  Qe4+ {[%clk 0:00:10]} 61. Kf1 {[%clk 0:00:05]}  Kg5 {[%clk 0:00:11]} 62. c5 {[%clk 0:00:05]}  Nf5 {[%clk 0:00:11]} 63. Rxf7 {[%clk 0:00:05]}  Kg4 {[%clk 0:00:10]} 64. Ra3 {[%clk 0:00:03]}  Qh1+ {[%clk 0:00:09]} 65. Ke2 {[%clk 0:00:03]}  Qe4+ {[%clk 0:00:09]} 66. Kf1 {[%clk 0:00:03]}  Qh1+ {[%clk 0:00:09]} 67. Ke2 {[%clk 0:00:03]}  Kg5 {[%clk 0:00:09]} 68. c6 {[%clk 0:00:02]}  Qxc6 {[%clk 0:00:09]} 69. f4+ {[%clk 0:00:02]}  Kg6 {[%clk 0:00:09]} 70. Rfa7 {[%clk 0:00:02]}  Qc2+ {[%clk 0:00:09]} 71. Kf3 {[%clk 0:00:02]}  Qd1+ {[%clk 0:00:10]} 72. Kg2 {[%clk 0:00:02]}  Nd4 {[%clk 0:00:09]} 73. f5+ {[%clk 0:00:02]}  Kg5 {[%clk 0:00:09]} 74. R7a5 {[%clk 0:00:02]}  Qe2+ {[%clk 0:00:09]} 75. Kh3 {[%clk 0:00:02]}  exf5 {[%clk 0:00:09]} 76. R5a4 {[%clk 0:00:02]}  Qf1+ {[%clk 0:00:10]} 77. Kh2 {[%clk 0:00:01]}  Nf3+ {[%clk 0:00:10]} 78. Rxf3 {[%clk 0:00:01]}  Qxf3 {[%clk 0:00:11]} 79. Rh4 {[%clk 0:00:01]}  Qf2+ {[%clk 0:00:11]} 80. Kh3 {[%clk 0:00:02]}  Qe2 {[%clk 0:00:12]} 81. Rf4 {[%clk 0:00:02]}  Kf6 {[%clk 0:00:12]} 82. Kh4 {[%clk 0:00:02]}  Qh2# {[%clk 0:00:12]} 0-1


[Site "https://www.chess.com"]

[Event "Titled Tuesday Blitz November 14 Early 2023"]
[White "Danielyan, Vahe"]
[Black "Sychev, Klementy"]
[WhiteFideId "13304828"]
[BlackFideId "4114060"]
[WhiteElo "2703"]
[BlackElo "2903"]
[Result "0-1"]
[Round "3"]
[TimeControl "180+1"]
[Date "2023.11.14"]
[WhiteClock "0:00:11"]
[BlackClock "0:00:03"]
[Board "28"]

1. e4 {[%clk 0:02:55]}  e5 {[%clk 0:02:59]} 2. Nf3 {[%clk 0:02:54]}  Nc6 {[%clk 0:03:00]} 3. Nc3 {[%clk 0:02:48]}  Nf6 {[%clk 0:02:59]} 4. Bb5 {[%clk 0:02:47]}  Bb4 {[%clk 0:02:51]} 5. O-O {[%clk 0:02:47]}  O-O {[%clk 0:02:51]} 6. d3 {[%clk 0:02:46]}  d6 {[%clk 0:02:51]} 7. Bg5 {[%clk 0:02:41]}  Ne7 {[%clk 0:02:51]} 8. Bc4 {[%clk 0:02:36]}  c6 {[%clk 0:02:49]} 9. Nh4 {[%clk 0:02:29]}  d5 {[%clk 0:02:45]} 10. exd5 {[%clk 0:02:28]}  cxd5 {[%clk 0:02:43]} 11. Bb3 {[%clk 0:02:27]}  Bxc3 {[%clk 0:02:20]} 12. bxc3 {[%clk 0:02:27]}  Qd6 {[%clk 0:01:54]} 13. Re1 {[%clk 0:02:23]}  h6 {[%clk 0:01:47]} 14. Bc1 {[%clk 0:02:22]}  Ng6 {[%clk 0:01:36]} 15. Nxg6 {[%clk 0:02:18]}  fxg6 {[%clk 0:01:36]} 16. a4 {[%clk 0:02:12]}  Qc7 {[%clk 0:01:04]} 17. Ba3 {[%clk 0:02:03]}  Re8 {[%clk 0:00:43]} 18. Qd2 {[%clk 0:01:50]}  Be6 {[%clk 0:00:38]} 19. Re2 {[%clk 0:01:44]}  Bf7 {[%clk 0:00:37]} 20. Rae1 {[%clk 0:01:44]}  Rac8 {[%clk 0:00:36]} 21. h3 {[%clk 0:01:37]}  g5 {[%clk 0:00:33]} 22. Qe3 {[%clk 0:01:18]}  b6 {[%clk 0:00:29]} 23. Qf3 {[%clk 0:00:35]}  Qxc3 {[%clk 0:00:21]} 24. Qf5 {[%clk 0:00:35]}  e4 {[%clk 0:00:07]} 25. dxe4 {[%clk 0:00:33]}  dxe4 {[%clk 0:00:07]} 26. Re3 {[%clk 0:00:28]}  Qe5 {[%clk 0:00:06]} 27. Qg6 {[%clk 0:00:23]}  Re6 {[%clk 0:00:04]} 28. Bxe6 {[%clk 0:00:21]}  Qxe6 {[%clk 0:00:04]} 29. Bb2 {[%clk 0:00:11]}  Bxg6 {[%clk 0:00:03]} 0-1


[Site "https://www.chess.com"]

[Event "Titled Tuesday Blitz November 14 Early 2023"]
[White "Ladopoulos, Dimitrios"]
[Black "Kamsky, Gata"]
[WhiteFideId "4239580"]
[BlackFideId "2000024"]
[WhiteElo "2701"]
[BlackElo "2900"]
[Result "1/2-1/2"]
[Round "3"]
[TimeControl "180+1"]
[Date "2023.11.14"]
[WhiteClock "0:00:04"]
[BlackClock "0:00:08"]
[Board "30"]

1. d4 {[%clk 0:03:00]}  f5 {[%clk 0:02:57]} 2. Nf3 {[%clk 0:02:56]}  Nf6 {[%clk 0:02:55]} 3. g3 {[%clk 0:02:56]}  g6 {[%clk 0:02:55]} 4. Bg2 {[%clk 0:02:57]}  Bg7 {[%clk 0:02:55]} 5. O-O {[%clk 0:02:58]}  d6 {[%clk 0:02:55]} 6. c4 {[%clk 0:02:59]}  O-O {[%clk 0:02:54]} 7. Nc3 {[%clk 0:02:57]}  c6 {[%clk 0:02:55]} 8. Qc2 {[%clk 0:02:49]}  a5 {[%clk 0:02:51]} 9. b3 {[%clk 0:02:46]}  Na6 {[%clk 0:02:50]} 10. a3 {[%clk 0:02:37]}  Bd7 {[%clk 0:02:38]} 11. Bb2 {[%clk 0:02:33]}  Qc7 {[%clk 0:02:29]} 12. e4 {[%clk 0:02:30]}  fxe4 {[%clk 0:02:08]} 13. Nxe4 {[%clk 0:02:31]}  Nxe4 {[%clk 0:02:01]} 14. Qxe4 {[%clk 0:02:32]}  Bf5 {[%clk 0:01:46]} 15. Qe3 {[%clk 0:02:32]}  Qd7 {[%clk 0:01:42]} 16. Bc3 {[%clk 0:02:25]}  Nc7 {[%clk 0:01:38]} 17. Rfe1 {[%clk 0:02:22]}  Rfe8 {[%clk 0:01:31]} 18. a4 {[%clk 0:01:34]}  b6 {[%clk 0:01:07]} 19. Nh4 {[%clk 0:01:03]}  Bh3 {[%clk 0:01:06]} 20. Rad1 {[%clk 0:00:50]}  Bxg2 {[%clk 0:01:04]} 21. Nxg2 {[%clk 0:00:51]}  b5 {[%clk 0:01:02]} 22. Nf4 {[%clk 0:00:43]}  bxc4 {[%clk 0:01:01]} 23. bxc4 {[%clk 0:00:43]}  d5 {[%clk 0:01:00]} 24. c5 {[%clk 0:00:36]}  Bh6 {[%clk 0:00:52]} 25. Bd2 {[%clk 0:00:23]}  Qf5 {[%clk 0:00:48]} 26. Qd3 {[%clk 0:00:13]}  e6 {[%clk 0:00:17]} 27. Qxf5 {[%clk 0:00:06]}  exf5 {[%clk 0:00:16]} 28. Nxd5 {[%clk 0:00:04]}  Rxe1+ {[%clk 0:00:14]} 29. Rxe1 {[%clk 0:00:04]}  Nxd5 {[%clk 0:00:13]} 30. Bxh6 {[%clk 0:00:04]}  Kf7 {[%clk 0:00:14]} 31. Rb1 {[%clk 0:00:04]}  Nc3 {[%clk 0:00:11]} 32. Rb7+ {[%clk 0:00:03]}  Ke6 {[%clk 0:00:12]} 33. Rc7 {[%clk 0:00:04]}  Ne2+ {[%clk 0:00:11]} 34. Kf1 {[%clk 0:00:03]}  Nxd4 {[%clk 0:00:11]} 35. Be3 {[%clk 0:00:04]}  Rd8 {[%clk 0:00:10]} 36. Bxd4 {[%clk 0:00:03]}  Rxd4 {[%clk 0:00:10]} 37. Rxc6+ {[%clk 0:00:04]}  Ke5 {[%clk 0:00:10]} 38. Rc7 {[%clk 0:00:03]}  h5 {[%clk 0:00:08]} 39. Re7+ {[%clk 0:00:02]}  Kf6 {[%clk 0:00:08]} 40. Rc7 {[%clk 0:00:02]}  Rxa4 {[%clk 0:00:08]} 41. Rc6+ {[%clk 0:00:03]}  Kf7 {[%clk 0:00:07]} 42. h4 {[%clk 0:00:03]}  Rc4 {[%clk 0:00:07]} 43. Rc7+ {[%clk 0:00:03]}  Kf6 {[%clk 0:00:07]} 44. Rc6+ {[%clk 0:00:04]}  Kf7 {[%clk 0:00:07]} 45. Rc7+ {[%clk 0:00:04]}  Kf6 {[%clk 0:00:08]} 46. Rc6+ {[%clk 0:00:04]}  Kf7 {[%clk 0:00:08]} 1/2-1/2


[Site "https://www.chess.com"]

[Event "Titled Tuesday Blitz November 14 Early 2023"]
[White "Salinas Herrera, Pablo"]
[Black "Mladenovic, Stefan"]
[WhiteFideId "3407128"]
[BlackFideId "942227"]
[WhiteElo "2896"]
[BlackElo "2689"]
[Result "1-0"]
[Round "3"]
[TimeControl "180+1"]
[Date "2023.11.14"]
[WhiteClock "0:00:51"]
[BlackClock "0:00:00"]
[Board "32"]

1. d4 {[%clk 0:03:00]}  Nf6 {[%clk 0:02:59]} 2. Nf3 {[%clk 0:02:59]}  e6 {[%clk 0:02:59]} 3. Bf4 {[%clk 0:02:59]}  c5 {[%clk 0:02:58]} 4. e3 {[%clk 0:03:00]}  cxd4 {[%clk 0:02:58]} 5. exd4 {[%clk 0:03:00]}  b6 {[%clk 0:02:59]} 6. c3 {[%clk 0:03:00]}  Bb7 {[%clk 0:02:59]} 7. Bd3 {[%clk 0:03:00]}  d6 {[%clk 0:02:59]} 8. O-O {[%clk 0:03:01]}  Be7 {[%clk 0:03:00]} 9. Re1 {[%clk 0:03:01]}  O-O {[%clk 0:03:00]} 10. Nbd2 {[%clk 0:03:01]}  Nbd7 {[%clk 0:03:00]} 11. Nf1 {[%clk 0:03:01]}  Re8 {[%clk 0:03:00]} 12. Ng3 {[%clk 0:03:01]}  Nf8 {[%clk 0:03:00]} 13. a4 {[%clk 0:02:56]}  a6 {[%clk 0:02:59]} 14. Nd2 {[%clk 0:02:55]}  Ng6 {[%clk 0:02:59]} 15. Be3 {[%clk 0:02:55]}  Nd5 {[%clk 0:02:57]} 16. Bf1 {[%clk 0:02:50]}  Ndf4 {[%clk 0:02:53]} 17. Nc4 {[%clk 0:02:42]}  Rb8 {[%clk 0:02:04]} 18. Qg4 {[%clk 0:02:38]}  f5 {[%clk 0:01:59]} 19. Qd1 {[%clk 0:02:37]}  Bf8 {[%clk 0:01:53]} 20. Nh5 {[%clk 0:02:30]}  Qh4 {[%clk 0:01:20]} 21. Nxf4 {[%clk 0:02:14]}  Nxf4 {[%clk 0:01:21]} 22. Qd2 {[%clk 0:02:11]}  Nd5 {[%clk 0:01:05]} 23. Bg5 {[%clk 0:02:11]}  Qh5 {[%clk 0:01:05]} 24. Bf4 {[%clk 0:01:59]}  Nxf4 {[%clk 0:01:01]} 25. Qxf4 {[%clk 0:02:00]}  g5 {[%clk 0:00:53]} 26. Qd2 {[%clk 0:01:55]}  b5 {[%clk 0:00:50]} 27. axb5 {[%clk 0:01:55]}  axb5 {[%clk 0:00:51]} 28. Na5 {[%clk 0:01:54]}  Bd5 {[%clk 0:00:51]} 29. b3 {[%clk 0:01:55]}  g4 {[%clk 0:00:30]} 30. c4 {[%clk 0:01:55]}  bxc4 {[%clk 0:00:28]} 31. bxc4 {[%clk 0:01:56]}  Bh6 {[%clk 0:00:25]} 32. Qc3 {[%clk 0:01:49]}  Be4 {[%clk 0:00:25]} 33. Qg3 {[%clk 0:01:44]}  f4 {[%clk 0:00:24]} 34. Qa3 {[%clk 0:01:42]}  d5 {[%clk 0:00:24]} 35. Nc6 {[%clk 0:01:40]}  g3 {[%clk 0:00:22]} 36. hxg3 {[%clk 0:01:38]}  Rb7 {[%clk 0:00:13]} 37. Ne5 {[%clk 0:01:28]}  Rg7 {[%clk 0:00:12]} 38. g4 {[%clk 0:01:27]}  Qh4 {[%clk 0:00:10]} 39. Qh3 {[%clk 0:01:19]}  Qf6 {[%clk 0:00:09]} 40. Ra6 {[%clk 0:01:10]}  Bg5 {[%clk 0:00:06]} 41. Rea1 {[%clk 0:00:58]}  Qf8 {[%clk 0:00:05]} 42. Ra7 {[%clk 0:00:55]}  Rxa7 {[%clk 0:00:03]} 43. Rxa7 {[%clk 0:00:56]}  Re7 {[%clk 0:00:03]} 44. Ra6 {[%clk 0:00:54]}  Qg7 {[%clk 0:00:02]} 45. Ra8+ {[%clk 0:00:53]}  Qf8 {[%clk 0:00:01]} 46. Rxf8+ {[%clk 0:00:53]}  Kxf8 {[%clk 0:00:00]} 47. Qa3 {[%clk 0:00:51]} 1-0


[Site "https://www.chess.com"]

[Event "Titled Tuesday Blitz November 14 Early 2023"]
[White "Bachmann, Axel"]
[Black "Dowgird, Filip"]
[WhiteFideId "3700488"]
[BlackFideId "1121235"]
[WhiteElo "2881"]
[BlackElo "2676"]
[Result "1-0"]
[Round "3"]
[TimeControl "180+1"]
[Date "2023.11.14"]
[WhiteClock "0:01:01"]
[BlackClock "0:00:09"]
[Board "35"]

1. Nf3 {[%clk 0:02:59]}  d6 {[%clk 0:02:59]} 2. d4 {[%clk 0:02:55]}  Bg4 {[%clk 0:02:58]} 3. e4 {[%clk 0:02:55]}  Nf6 {[%clk 0:02:57]} 4. Nc3 {[%clk 0:02:55]}  e6 {[%clk 0:02:57]} 5. h3 {[%clk 0:02:53]}  Bh5 {[%clk 0:02:57]} 6. Bd3 {[%clk 0:02:50]}  c6 {[%clk 0:02:55]} 7. g4 {[%clk 0:02:48]}  Bg6 {[%clk 0:02:55]} 8. Qe2 {[%clk 0:02:48]}  d5 {[%clk 0:02:55]} 9. e5 {[%clk 0:02:43]}  Nfd7 {[%clk 0:02:55]} 10. Bxg6 {[%clk 0:02:40]}  hxg6 {[%clk 0:02:55]} 11. Bg5 {[%clk 0:02:40]}  Qa5 {[%clk 0:02:52]} 12. Bd2 {[%clk 0:02:37]}  Qa6 {[%clk 0:02:47]} 13. Qe3 {[%clk 0:02:31]}  c5 {[%clk 0:02:45]} 14. Qf4 {[%clk 0:02:23]}  Be7 {[%clk 0:02:36]} 15. a4 {[%clk 0:02:19]}  cxd4 {[%clk 0:02:30]} 16. Nb5 {[%clk 0:02:16]}  Qc6 {[%clk 0:02:24]} 17. Nfxd4 {[%clk 0:02:14]}  Qc8 {[%clk 0:02:24]} 18. c4 {[%clk 0:01:56]}  dxc4 {[%clk 0:02:16]} 19. Rc1 {[%clk 0:01:55]}  a6 {[%clk 0:02:08]} 20. Na3 {[%clk 0:01:39]}  Bxa3 {[%clk 0:01:58]} 21. bxa3 {[%clk 0:01:40]}  Nc6 {[%clk 0:01:58]} 22. Nf3 {[%clk 0:01:38]}  b5 {[%clk 0:01:54]} 23. Bc3 {[%clk 0:01:31]}  Nc5 {[%clk 0:01:47]} 24. O-O {[%clk 0:01:31]}  Nd3 {[%clk 0:01:45]} 25. Qe4 {[%clk 0:01:32]}  Nxc1 {[%clk 0:01:39]} 26. Rxc1 {[%clk 0:01:33]}  Rxh3 {[%clk 0:01:39]} 27. Kg2 {[%clk 0:01:31]}  Rh8 {[%clk 0:01:31]} 28. Rd1 {[%clk 0:01:30]}  Ra7 {[%clk 0:01:14]} 29. Rd6 {[%clk 0:01:29]}  Rc7 {[%clk 0:01:12]} 30. axb5 {[%clk 0:01:27]}  axb5 {[%clk 0:01:12]} 31. Kg3 {[%clk 0:01:25]}  Rh1 {[%clk 0:01:07]} 32. Nd4 {[%clk 0:01:19]}  Rg1+ {[%clk 0:00:57]} 33. Kh2 {[%clk 0:01:20]}  Nxd4 {[%clk 0:00:37]} 34. Kxg1 {[%clk 0:01:18]}  Nc6 {[%clk 0:00:29]} 35. Qh1 {[%clk 0:01:17]}  g5 {[%clk 0:00:23]} 36. Qh8+ {[%clk 0:01:11]}  Ke7 {[%clk 0:00:23]} 37. Qxg7 {[%clk 0:01:11]}  Qf8 {[%clk 0:00:20]} 38. Qf6+ {[%clk 0:01:04]}  Ke8 {[%clk 0:00:21]} 39. Bb4 {[%clk 0:01:04]}  Qg8 {[%clk 0:00:09]} 40. Rxc6 {[%clk 0:01:01]} 1-0


[Site "https://www.chess.com"]

[Event "Titled Tuesday Blitz November 14 Early 2023"]
[White "Boruchovsky, Avital"]
[Black "Maltsevskaya, Aleksandra"]
[WhiteFideId "2800055"]
[BlackFideId "24174041"]
[WhiteElo "2862"]
[BlackElo "2648"]
[Result "0-1"]
[Round "3"]
[TimeControl "180+1"]
[Date "2023.11.14"]
[WhiteClock "0:00:15"]
[BlackClock "0:00:05"]
[Board "37"]

1. e4 {[%clk 0:03:00]}  c6 {[%clk 0:02:29]} 2. Nc3 {[%clk 0:03:00]}  d5 {[%clk 0:02:28]} 3. Nf3 {[%clk 0:03:00]}  Bg4 {[%clk 0:02:25]} 4. h3 {[%clk 0:03:00]}  Bxf3 {[%clk 0:02:25]} 5. Qxf3 {[%clk 0:03:01]}  e6 {[%clk 0:02:26]} 6. d3 {[%clk 0:02:52]}  Bc5 {[%clk 0:02:22]} 7. a3 {[%clk 0:02:49]}  Ne7 {[%clk 0:02:21]} 8. Be2 {[%clk 0:02:45]}  Nd7 {[%clk 0:02:21]} 9. Qg3 {[%clk 0:02:43]}  O-O {[%clk 0:02:07]} 10. O-O {[%clk 0:02:41]}  f5 {[%clk 0:02:04]} 11. Kh1 {[%clk 0:02:10]}  Ng6 {[%clk 0:01:56]} 12. exf5 {[%clk 0:02:06]}  exf5 {[%clk 0:01:55]} 13. Bh5 {[%clk 0:01:27]}  f4 {[%clk 0:01:46]} 14. Qg4 {[%clk 0:01:24]}  Nde5 {[%clk 0:01:22]} 15. Qd1 {[%clk 0:01:17]}  f3 {[%clk 0:00:39]} 16. g3 {[%clk 0:01:04]}  Qd7 {[%clk 0:00:23]} 17. Kh2 {[%clk 0:01:04]}  Rf5 {[%clk 0:00:18]} 18. Bxg6 {[%clk 0:00:33]}  hxg6 {[%clk 0:00:16]} 19. d4 {[%clk 0:00:22]}  Rh5 {[%clk 0:00:07]} 20. h4 {[%clk 0:00:21]}  Rxh4+ {[%clk 0:00:04]} 21. gxh4 {[%clk 0:00:15]}  Qg4 {[%clk 0:00:05]} 0-1


[Site "https://www.chess.com"]

[Event "Titled Tuesday Blitz November 14 Early 2023"]
[White "Beerdsen, Thomas"]
[Black "GatoRojo150"]
[WhiteFideId "1030108"]
[WhiteElo "2853"]
[BlackElo "2622"]
[Result "0-1"]
[Round "3"]
[TimeControl "180+1"]
[Date "2023.11.14"]
[WhiteClock "0:00:07"]
[BlackClock "0:01:04"]
[Board "38"]

1. e4 {[%clk 0:03:00]}  e5 {[%clk 0:02:59]} 2. d4 {[%clk 0:03:00]}  exd4 {[%clk 0:02:59]} 3. Qxd4 {[%clk 0:03:00]}  Nc6 {[%clk 0:02:59]} 4. Qd3 {[%clk 0:03:01]}  Nf6 {[%clk 0:02:56]} 5. Nc3 {[%clk 0:03:02]}  d5 {[%clk 0:02:56]} 6. Bf4 {[%clk 0:03:01]}  Nb4 {[%clk 0:02:49]} 7. Qe2 {[%clk 0:02:32]}  dxe4 {[%clk 0:02:42]} 8. Rd1 {[%clk 0:02:15]}  Bd6 {[%clk 0:02:34]} 9. Bxd6 {[%clk 0:02:07]}  cxd6 {[%clk 0:02:35]} 10. Nxe4 {[%clk 0:01:43]}  O-O {[%clk 0:02:31]} 11. Nxf6+ {[%clk 0:01:35]}  Qxf6 {[%clk 0:02:29]} 12. c3 {[%clk 0:01:27]}  Bf5 {[%clk 0:02:24]} 13. Qc4 {[%clk 0:01:25]}  Nc2+ {[%clk 0:02:07]} 14. Kd2 {[%clk 0:01:25]}  Qg5+ {[%clk 0:02:04]} 15. f4 {[%clk 0:01:24]}  Qe7 {[%clk 0:02:00]} 16. Bd3 {[%clk 0:01:18]}  Ne3 {[%clk 0:01:54]} 17. Qd4 {[%clk 0:01:12]}  Nxd1 {[%clk 0:01:49]} 18. Bxf5 {[%clk 0:01:11]}  Nxb2 {[%clk 0:01:44]} 19. Nf3 {[%clk 0:01:08]}  d5 {[%clk 0:01:39]} 20. Re1 {[%clk 0:01:06]}  Nc4+ {[%clk 0:01:38]} 21. Kd3 {[%clk 0:00:42]}  Qa3 {[%clk 0:01:18]} 22. Ne5 {[%clk 0:00:20]}  Qxa2 {[%clk 0:01:13]} 23. Nxc4 {[%clk 0:00:14]}  dxc4+ {[%clk 0:01:14]} 24. Ke3 {[%clk 0:00:10]}  Rfe8+ {[%clk 0:01:14]} 25. Be4 {[%clk 0:00:10]}  Rad8 {[%clk 0:01:10]} 26. Qc5 {[%clk 0:00:07]}  Rd3# {[%clk 0:01:04]} 0-1


[Site "https://www.chess.com"]